[Event "RUS-chT Higher League 2021"]
[Site "Sochi"]
[Date "2021.05.10"]
[Round "9.4"]
[White "Bobkov, Vadim"]
[Black "Radzhabov, Rodion"]
[Result "1/2-1/2"]
[ECO "E11"]
[WhiteElo "2265"]
[BlackElo "2352"]
[Annotator "NA"]
[PlyCount "56"]
[EventDate "2021.05.01"]
[EventType "team-tourn"]
[EventCountry "RUS"]
[SourceTitle "playchess.com"]
[Source "ChessBase"]
[SourceQuality "1"]
[TimeControl "40/5400+30:1800+30"]

1. d4 {[%emt 0:00:00]} Nf6 {[%emt 0:00:00]} 2. c4 {[%emt 0:00:00]} e6 {[%emt 0:00:00]} 3. Nf3 {[%emt 0:00:00]} Bb4+ {[%emt 0:00:00]} 4. Bd2 {[%emt 0:00:00]} Bxd2+ {[%emt 0:00:34]} 5. Qxd2 {[%emt 0:00:23]} d5 {[%emt 0:00:06]} 6. Nc3 {[%emt 0:03:43]} O-O {[%emt 0:00:20]} 7. Rc1 {[%emt 0:12:21]} Qe7 {[%emt 0:00:22]} 8. e3 {[%emt 0:00:39]} Rd8 {[%emt 0:00:39]} 9. cxd5 {[%emt 0:01:51]} exd5 {[%emt 0:00:06]} 10. Bd3 {[%emt 0:00:19]} Nc6 {[%emt 0:00:05]} 11. h3 {[%emt 0:02:25]} Ne4 {[%emt 0:04:39]} 12. Qe2 {[%emt 0:14:44]} Bf5 {[%emt 0:05:08]} 13. O-O {[%emt 0:01:40]} a6 {[%emt 0:13:51]} 14. Nd2 {[%emt 0:08:52]} Nxd2 {[%emt 0:02:35]} 15. Qxd2 {[%emt 0:00:09]} Bxd3 {[%emt 0:00:04]} 16. Qxd3 {[%emt 0:00:03]} Na7 {[%emt 0:00:07]} 17. Rb1 {[%emt 0:14:50]} c6 {[%emt 0:02:46]} 18. b4 {[%emt 0:01:09]} Nb5 {[%emt 0:15:45]} 19. a4 {[%emt 0:00:17]} Nd6 {[%emt 0:02:09]} 20. b5 {[%emt 0:00:41]} axb5 {[%emt 0:00:21]} 21. axb5 {[%emt 0:00:05]} g6 {[%emt 0:00:38]} 22. Rfc1 {[%emt 0:09:53]} Nc4 {[%emt 0:09:45]} 23. Ra1 {[%emt 0:12:37]} Ra3 {[%emt 0:07:45]} 24. bxc6 {[%emt 0:01:09]} bxc6 {[%emt 0:00:21]} 25. e4 {[%emt 0:01:06]} Qg5 {[%emt 0:09:04]} 26. Re1 {[%emt 0:05:13]} Rxa1 {[%emt 0:14:49]} 27. Rxa1 {[%emt 0:00:01]} Qd2 {[%emt 0:00:08]} 28. Qxd2 {[%emt 0:00:20]} Nxd2 {[%emt 0:00:02]} 1/2-1/2

[Event "RUS-chT Higher League 2021"]
[Site "Sochi"]
[Date "2021.05.10"]
[Round "9.5"]
[White "Kezin, Roman"]
[Black "Bryakin, Mikhail"]
[Result "1/2-1/2"]
[ECO "A05"]
[WhiteElo "2472"]
[BlackElo "2467"]
[Annotator "ChessBase"]
[PlyCount "99"]
[EventDate "2021.05.01"]
[EventType "team-tourn"]
[EventCountry "RUS"]
[SourceTitle "playchess.com"]
[Source "ChessBase"]
[SourceQuality "1"]
[TimeControl "40/5400+30:1800+30"]

1. Nf3 {[%emt 0:00:00]} Nf6 {[%emt 0:00:00]} 2. c4 {[%emt 0:00:00]} e6 {[%emt 0:00:35]} 3. Nc3 {[%emt 0:00:33]} d5 {[%emt 0:01:50]} 4. d4 {[%emt 0:06:20]} dxc4 {[%emt 0:01:49]} 5. Bg5 {[%emt 0:03:02]} a6 {[%emt 0:11:42]} 6. e3 {[%emt 0:15:53]} b5 {[%emt 0:19:27]} 7. a4 {[%emt 0:01:03]} c6 {[%emt 0:01:10]} 8. axb5 {[%emt 0:14:32]} cxb5 {[%emt 0:00:23]} 9. Nxb5 {[%emt 0:09:27]} axb5 {[%emt 0:00:39]} 10. Rxa8 {[%emt 0:00:06]} Bb7 {[%emt 0:01:02]} 11. Ra1 {[%emt 0:20:44]} Bb4+ {[%emt 0:00:24]} 12. Nd2 {[%emt 0:00:47]} e5 {[%emt 0:04:45]} 13. Be2 {[%emt 0:05:56]} exd4 {[%emt 0:03:15]} 14. O-O {[%emt 0:03:36]} Bxd2 {[%emt 0:18:31]} 15. Qxd2 {[%emt 0:03:36]} Ne4 {[%emt 0:00:55]} 16. Bxd8 {[%emt 0:01:19]} Nxd2 {[%emt 0:02:05]} 17. Rfd1 {[%emt 0:06:01]} Kxd8 {[%emt 0:01:27]} 18. Rxd2 {[%emt 0:00:15]} d3 {[%emt 0:00:07]} 19. b3 {[%emt 0:01:55]} Kc7 {[%emt 0:04:36]} 20. bxc4 {[%emt 0:02:30]} bxc4 {[%emt 0:01:18]} 21. Bxd3 {[%emt 0:02:14]} cxd3 {[%emt 0:00:19]} 22. Rxd3 {[%emt 0:00:02]} Nc6 {[%emt 0:00:48]} 23. f3 {[%emt 0:00:12]} Rb8 {[%emt 0:01:12]} 24. Rad1 {[%emt 0:00:22]} Bc8 {[%emt 0:02:21]} 25. R1d2 {[%emt 0:00:27]} Be6 {[%emt 0:01:13]} 26. Rc3 {[%emt 0:00:07]} Rb3 {[%emt 0:02:01]} 27. Rxb3 {[%emt 0:00:06]} Bxb3 {[%emt 0:00:05]} 28. Kf2 {[%emt 0:00:20]} Ne5 {[%emt 0:01:25]} 29. e4 {[%emt 0:00:47]} Nd7 {[%emt 0:00:54]} 30. Ke3 {[%emt 0:00:42]} Kd8 {[%emt 0:00:56]} 31. f4 {[%emt 0:00:04]} f6 {[%emt 0:00:56]} 32. Rb2 {[%emt 0:00:22]} Be6 {[%emt 0:00:36]} 33. Kd4 {[%emt 0:00:03]} Ke7 {[%emt 0:00:43]} 34. Rb7 {[%emt 0:00:04]} Kd6 {[%emt 0:00:55]} 35. Ra7 {[%emt 0:00:06]} Ke7 {[%emt 0:00:46]} 36. Ra8 {[%emt 0:00:17]} h6 {[%emt 0:01:06]} 37. Ra7 {[%emt 0:01:17]} Kd6 {[%emt 0:00:29]} 38. Ra6+ {[%emt 0:00:34]} Ke7 {[%emt 0:00:12]} 39. Ra8 {[%emt 0:00:05]} Bf7 {[%emt 0:02:18]} 40. Ra5 {[%emt 0:00:00]} Be6 {[%emt 0:00:00]} 41. h3 {[%emt 0:01:51]} g5 {[%emt 0:03:14]} 42. Ke3 {[%emt 0:02:18]} gxf4+ {[%emt 0:00:31]} 43. Kxf4 {[%emt 0:00:04]} Ne5 {[%emt 0:00:26]} 44. Ra7+ {[%emt 0:00:05]} Bd7 {[%emt 0:01:21]} 45. g4 {[%emt 0:00:34]} Kf7 {[%emt 0:02:14]} 46. Ra8 {[%emt 0:00:54]} Kg6 {[%emt 0:01:22]} 47. Ra7 {[%emt 0:00:48]} Kf7 {[%emt 0:00:42]} 48. Kg3 {[%emt 0:00:05]} Kg6 {[%emt 0:00:33]} 49. Rc7 {[%emt 0:01:19]} Kf7 {[%emt 0:01:32]} 50. Ra7 {[%emt 0:02:06]} 1/2-1/2

[Event "RUS-chT Higher League 2021"]
[Site "Sochi"]
[Date "2021.05.10"]
[Round "9.6"]
[White "Yeletsky, Ivan"]
[Black "Obgolts, Erik"]
[Result "1/2-1/2"]
[ECO "E94"]
[WhiteElo "2448"]
[BlackElo "2414"]
[Annotator "NA"]
[PlyCount "84"]
[EventDate "2021.05.01"]
[EventType "team-tourn"]
[EventCountry "RUS"]
[SourceTitle "playchess.com"]
[Source "ChessBase"]
[SourceQuality "1"]
[TimeControl "40/5400+30:1800+30"]

1. d4 {[%emt 0:00:00]} Nf6 {[%emt 0:00:00]} 2. c4 {[%emt 0:00:00]} g6 {[%emt 0:00:00]} 3. Nc3 {[%emt 0:00:00]} Bg7 {[%emt 0:00:00]} 4. e4 {[%emt 0:00:09]} d6 {[%emt 0:00:00]} 5. Nf3 {[%emt 0:00:12]} O-O {[%emt 0:00:03]} 6. Be2 {[%emt 0:00:08]} e5 {[%emt 0:00:04]} 7. O-O {[%emt 0:00:08]} Bg4 {[%emt 0:00:03]} 8. d5 {[%emt 0:00:08]} a5 {[%emt 0:00:57]} 9. Be3 {[%emt 0:00:19]} Na6 {[%emt 0:00:26]} 10. Nd2 {[%emt 0:00:41]} Bd7 {[%emt 0:00:12]} 11. a3 {[%emt 0:01:04]} h5 {[%emt 0:02:31]} 12. h3 {[%emt 0:02:02]} Nh7 {[%emt 0:01:28]} 13. Rb1 {[%emt 0:13:27]} Nc5 {[%emt 0:08:09]} 14. b4 {[%emt 0:01:19]} axb4 {[%emt 0:00:11]} 15. axb4 {[%emt 0:00:12]} Na4 {[%emt 0:00:09]} 16. Nxa4 {[%emt 0:00:58]} Bxa4 {[%emt 0:01:35]} 17. Qc1 {[%emt 0:00:09]} f5 {[%emt 0:11:34]} 18. exf5 {[%emt 0:09:55]} gxf5 {[%emt 0:00:05]} 19. f4 {[%emt 0:00:44]} Qe8 {[%emt 0:04:19]} 20. fxe5 {[%emt 0:09:24]} Qxe5 {[%emt 0:03:31]} 21. Nf3 {[%emt 0:02:01]} Qe4 {[%emt 0:00:19]} 22. Bd1 {[%emt 0:07:50]} Bxd1 {[%emt 0:01:03]} 23. Rxd1 {[%emt 0:00:07]} Ra2 {[%emt 0:00:28]} 24. Re1 {[%emt 0:06:16]} Rc2 {[%emt 0:10:01]} 25. Qd1 {[%emt 0:00:19]} Bc3 {[%emt 0:03:46]} 26. Nd2 {[%emt 0:04:59]} Bxd2 {[%emt 0:05:54]} 27. Bxd2 {[%emt 0:00:15]} Qd4+ {[%emt 0:00:03]} 28. Be3 {[%emt 0:00:06]} Qxd1 {[%emt 0:00:04]} 29. Rbxd1 {[%emt 0:06:01]} f4 {[%emt 0:11:35]} 30. Rc1 {[%emt 0:04:31]} Ra2 {[%emt 0:00:55]} 31. Bf2 {[%emt 0:03:19]} f3 {[%emt 0:00:51]} 32. Rc3 {[%emt 0:11:29]} Ng5 {[%emt 0:03:45]} 33. h4 {[%emt 0:00:18]} fxg2 {[%emt 0:00:33]} 34. Rg3 {[%emt 0:00:08]} Rfxf2 {[%emt 0:01:07]} 35. Rxg5+ {[%emt 0:00:12]} Kf7 {[%emt 0:00:23]} 36. Rxh5 {[%emt 0:00:15]} Rf4 {[%emt 0:01:28]} 37. Rh7+ {[%emt 0:03:25]} Kg6 {[%emt 0:01:23]} 38. Rxc7 {[%emt 0:00:24]} Rxh4 {[%emt 0:00:56]} 39. Re6+ {[%emt 0:00:08]} Kf5 {[%emt 0:00:12]} 40. Rf7+ {[%emt 0:00:00]} Kg5 {[%emt 0:00:00]} 41. Rg7+ {[%emt 0:00:35]} Kf5 {[%emt 0:00:08]} 42. Rf7+ {[%emt 0:00:17]} Kg5 1/2-1/2

[Event "RUS-chT Higher League 2021"]
[Site "Sochi"]
[Date "2021.05.10"]
[Round "9.7"]
[White "Ovod, Evgenija"]
[Black "Smirnov, Timofey"]
[Result "1/2-1/2"]
[ECO "B22"]
[WhiteElo "2341"]
[BlackElo "2415"]
[Annotator "NA"]
[PlyCount "86"]
[EventDate "2021.05.01"]
[EventType "team-tourn"]
[EventCountry "RUS"]
[SourceTitle "playchess.com"]
[Source "ChessBase"]
[SourceQuality "1"]
[TimeControl "40/5400+30:1800+30"]

1. e4 {[%emt 0:00:00]} c5 {[%emt 0:00:00]} 2. c3 {[%emt 0:00:00]} d5 {[%emt 0:00:00]} 3. exd5 {[%emt 0:00:00]} Qxd5 {[%emt 0:00:00]} 4. d4 {[%emt 0:00:00]} Nc6 {[%emt 0:00:00]} 5. Nf3 {[%emt 0:00:49]} Bg4 {[%emt 0:00:09]} 6. Be2 {[%emt 0:00:17]} e6 {[%emt 0:00:11]} 7. O-O {[%emt 0:01:18]} Nf6 {[%emt 0:00:14]} 8. Be3 {[%emt 0:01:39]} cxd4 {[%emt 0:00:10]} 9. cxd4 {[%emt 0:00:43]} Be7 {[%emt 0:00:13]} 10. Nc3 {[%emt 0:00:10]} Qd6 {[%emt 0:00:06]} 11. h3 {[%emt 0:06:57]} Bh5 {[%emt 0:00:18]} 12. Qd2 {[%emt 0:07:58]} O-O {[%emt 0:02:01]} 13. Bf4 {[%emt 0:05:55]} Qd8 {[%emt 0:01:28]} 14. Rad1 {[%emt 0:05:32]} Nd5 {[%emt 0:08:57]} 15. Ne5 {[%emt 0:07:13]} Bxe2 {[%emt 0:05:03]} 16. Nxe2 {[%emt 0:04:27]} Rc8 {[%emt 0:01:37]} 17. a3 {[%emt 0:04:19]} Bd6 {[%emt 0:11:12]} 18. Bg3 {[%emt 0:03:27]} Bxe5 {[%emt 0:03:01]} 19. dxe5 {[%emt 0:03:34]} Qa5 {[%emt 0:03:55]} 20. Nf4 {[%emt 0:18:00]} Nxf4 {[%emt 0:12:57]} 21. Bxf4 {[%emt 0:04:52]} Qb5 {[%emt 0:00:56]} 22. Qe3 {[%emt 0:01:55]} Rfd8 {[%emt 0:03:44]} 23. b4 {[%emt 0:01:07]} a6 {[%emt 0:04:41]} 24. Bg3 {[%emt 0:05:54]} Rd5 {[%emt 0:01:34]} 25. Rxd5 {[%emt 0:01:43]} Qxd5 {[%emt 0:00:03]} 26. Rc1 {[%emt 0:03:48]} h6 {[%emt 0:03:16]} 27. f4 {[%emt 0:00:34]} Rd8 {[%emt 0:00:31]} 28. Bf2 {[%emt 0:01:43]} Qa2 {[%emt 0:06:16]} 29. Qg3 {[%emt 0:07:52]} Qd2 {[%emt 0:03:58]} 30. Rc3 {[%emt 0:00:20]} Qd1+ {[%emt 0:11:05]} 31. Kh2 {[%emt 0:00:02]} Qb1 {[%emt 0:00:15]} 32. Qf3 {[%emt 0:01:31]} Rd1 {[%emt 0:00:18]} 33. g4 {[%emt 0:00:09]} Rd2 {[%emt 0:00:53]} 34. Kg3 {[%emt 0:00:30]} Nd4 {[%emt 0:05:04]} 35. Bxd4 {[%emt 0:00:22]} Rxd4 {[%emt 0:00:01]} 36. Qe3 {[%emt 0:00:21]} Rd1 {[%emt 0:05:48]} 37. Kh4 {[%emt 0:01:24]} Re1 {[%emt 0:02:01]} 38. Qd3 {[%emt 0:00:28]} Qxd3 {[%emt 0:02:47]} 39. Rxd3 {[%emt 0:00:01]} g6 {[%emt 0:00:01]} 40. g5 {[%emt 0:00:00]} hxg5+ {[%emt 0:00:00]} 41. Kxg5 {[%emt 0:04:11]} Kg7 {[%emt 0:02:10]} 42. Rd7 {[%emt 0:16:43]} Ra1 {[%emt 0:00:45]} 43. Rxb7 {[%emt 0:00:29]} Rxa3 {[%emt 0:00:02]} 1/2-1/2

[Event "RUS-chT Higher League 2021"]
[Site "Sochi"]
[Date "2021.05.10"]
[Round "9.8"]
[White "Klukin, Kirill"]
[Black "Kolmagorov, Alexey"]
[Result "1-0"]
[ECO "A15"]
[WhiteElo "2330"]
[BlackElo "2129"]
[Annotator "NA"]
[PlyCount "79"]
[EventDate "2021.05.01"]
[EventType "team-tourn"]
[EventCountry "RUS"]
[SourceTitle "playchess.com"]
[Source "ChessBase"]
[SourceQuality "1"]
[TimeControl "40/5400+30:1800+30"]

1. c4 {[%emt 0:00:00]} Nf6 {[%emt 0:00:00]} 2. Nf3 {[%emt 0:00:00]} c5 {[%emt 0:00:50]} 3. b3 {[%emt 0:00:04]} g6 {[%emt 0:00:44]} 4. Bb2 {[%emt 0:00:07]} Bg7 {[%emt 0:00:04]} 5. e4 {[%emt 0:04:44]} d6 {[%emt 0:03:22]} 6. d3 {[%emt 0:07:31]} Nc6 {[%emt 0:01:23]} 7. Nc3 {[%emt 0:02:09]} O-O {[%emt 0:05:26]} 8. Be2 {[%emt 0:00:41]} a6 {[%emt 0:00:44]} 9. O-O {[%emt 0:01:29]} Ne8 {[%emt 0:02:38]} 10. Qd2 {[%emt 0:01:01]} Nc7 {[%emt 0:03:59]} 11. Nd5 {[%emt 0:03:33]} Bxb2 {[%emt 0:06:13]} 12. Qxb2 {[%emt 0:01:25]} Ne6 {[%emt 0:00:32]} 13. b4 {[%emt 0:20:55]} Ncd4 {[%emt 0:10:28]} 14. bxc5 {[%emt 0:01:37]} dxc5 {[%emt 0:00:35]} 15. a4 {[%emt 0:00:22]} Bd7 {[%emt 0:10:41]} 16. Ne5 {[%emt 0:05:11]} Bc6 {[%emt 0:04:14]} 17. f4 {[%emt 0:07:32]} Qd6 {[%emt 0:02:18]} 18. g3 {[%emt 0:00:45]} Nxe2+ {[%emt 0:08:03]} 19. Qxe2 {[%emt 0:00:07]} Nd4 {[%emt 0:00:16]} 20. Qg2 {[%emt 0:12:34]} Bxd5 {[%emt 0:07:50]} 21. cxd5 {[%emt 0:05:27]} b5 {[%emt 0:00:43]} 22. h4 {[%emt 0:01:40]} f6 {[%emt 0:07:10]} 23. Ng4 {[%emt 0:00:29]} c4 {[%emt 0:01:33]} 24. dxc4 {[%emt 0:02:28]} bxc4 {[%emt 0:00:30]} 25. Rad1 {[%emt 0:00:13]} Nb3 {[%emt 0:02:35]} 26. Kh2 {[%emt 0:03:58]} Qc5 {[%emt 0:01:44]} 27. d6 {[%emt 0:02:20]} exd6 {[%emt 0:03:15]} 28. e5 {[%emt 0:00:54]} fxe5 {[%emt 0:07:57]} 29. fxe5 {[%emt 0:01:25]} d5 {[%emt 0:07:11]} 30. Nf6+ {[%emt 0:00:40]} Kh8 {[%emt 0:00:31]} 31. Rxd5 {[%emt 0:01:05]} Qc6 {[%emt 0:01:15]} 32. Rd7 {[%emt 0:00:22]} Qxg2+ {[%emt 0:00:22]} 33. Kxg2 {[%emt 0:00:04]} Rxf6 {[%emt 0:00:03]} 34. Rxf6 {[%emt 0:00:09]} Rc8 {[%emt 0:01:14]} 35. Rfd6 {[%emt 0:00:11]} Nc5 {[%emt 0:00:29]} 36. Rd8+ {[%emt 0:00:27]} Rxd8 {[%emt 0:00:04]} 37. Rxd8+ {[%emt 0:00:05]} Kg7 {[%emt 0:00:02]} 38. Rc8 {[%emt 0:00:16]} Nxa4 {[%emt 0:00:55]} 39. Rxc4 {[%emt 0:00:25]} Nb2 {[%emt 0:00:03]} 40. Rc7+ {[%emt 0:00:00]} 1-0

[Event "RUS-chT Higher League 2021"]
[Site "Sochi"]
[Date "2021.05.10"]
[Round "9.10"]
[White "Pridorozhni, Aleksei"]
[Black "Yudin, Sergei"]
[Result "1-0"]
[ECO "B00"]
[WhiteElo "2555"]
[BlackElo "2484"]
[Annotator "ChessBase"]
[PlyCount "65"]
[EventDate "2021.05.01"]
[EventType "team-tourn"]
[EventCountry "RUS"]
[SourceTitle "playchess.com"]
[Source "ChessBase"]
[SourceQuality "1"]
[TimeControl "40/5400+30:1800+30"]

1. e4 {[%emt 0:00:00]} d6 {[%emt 0:00:00]} 2. d4 {[%emt 0:00:00]} Nf6 {[%emt 0:00:00]} 3. f3 {[%emt 0:00:00]} e5 {[%emt 0:00:00]} 4. d5 {[%emt 0:00:01]} Be7 {[%emt 0:00:00]} 5. Be3 {[%emt 0:00:09]} Nh5 {[%emt 0:00:00]} 6. Qd2 {[%emt 0:00:10]} h6 {[%emt 0:00:00]} 7. Ne2 {[%emt 0:00:12]} Bg5 {[%emt 0:00:01]} 8. g3 {[%emt 0:00:15]} Bxe3 {[%emt 0:00:12]} 9. Qxe3 {[%emt 0:00:06]} Qg5 {[%emt 0:00:03]} 10. Qf2 {[%emt 0:01:26]} O-O {[%emt 0:00:10]} 11. h4 {[%emt 0:00:23]} Qe7 {[%emt 0:00:05]} 12. g4 {[%emt 0:01:02]} Nf4 {[%emt 0:00:05]} 13. Nxf4 {[%emt 0:00:38]} exf4 {[%emt 0:00:05]} 14. Nc3 {[%emt 0:00:14]} Qe5 {[%emt 0:01:24]} 15. O-O-O {[%emt 0:00:30]} Nd7 {[%emt 0:00:05]} 16. Qh2 {[%emt 0:11:15]} Nc5 {[%emt 0:00:44]} 17. h5 {[%emt 0:09:07]} b5 {[%emt 0:00:50]} 18. Bxb5 {[%emt 0:01:41]} Rb8 {[%emt 0:00:05]} 19. Qd2 {[%emt 0:01:34]} Bd7 {[%emt 0:00:40]} 20. Bxd7 {[%emt 0:00:54]} Nxd7 {[%emt 0:00:04]} 21. Qd4 {[%emt 0:03:26]} Qxd4 {[%emt 0:00:06]} 22. Rxd4 {[%emt 0:00:05]} Ne5 {[%emt 0:00:03]} 23. Rf1 {[%emt 0:00:12]} g6 {[%emt 0:00:04]} 24. Ne2 {[%emt 0:02:03]} f5 {[%emt 0:00:05]} 25. exf5 {[%emt 0:00:46]} gxf5 {[%emt 0:00:04]} 26. Rxf4 {[%emt 0:00:54]} fxg4 {[%emt 0:00:06]} 27. fxg4 {[%emt 0:00:04]} Rxf4 {[%emt 0:00:03]} 28. Rxf4 {[%emt 0:00:08]} Rf8 {[%emt 0:00:04]} 29. Ra4 {[%emt 0:01:16]} Rf2 {[%emt 0:00:10]} 30. Ng3 {[%emt 0:02:16]} a5 {[%emt 0:00:47]} 31. b3 {[%emt 0:00:23]} Kh7 {[%emt 0:00:24]} 32. Rxa5 {[%emt 0:00:27]} Nxg4 {[%emt 0:00:13]} 33. Ra7 {[%emt 0:00:15]} 1-0

[Event "RUS-chT Higher League 2021"]
[Site "Sochi"]
[Date "2021.05.10"]
[Round "9.11"]
[White "Pogromsky, Mikhail"]
[Black "Ulybin, Mikhail"]
[Result "0-1"]
[ECO "A30"]
[WhiteElo "2422"]
[BlackElo "2462"]
[Annotator "ChessBase"]
[PlyCount "70"]
[EventDate "2021.05.01"]
[EventType "team-tourn"]
[EventCountry "RUS"]
[SourceTitle "playchess.com"]
[Source "ChessBase"]
[SourceQuality "1"]
[TimeControl "40/5400+30:1800+30"]

1. c4 {[%emt 0:00:00]} c5 {[%emt 0:01:06]} 2. Nc3 {[%emt 0:00:56]} Nf6 {[%emt 0:02:27]} 3. Nf3 {[%emt 0:03:02]} e6 {[%emt 0:01:30]} 4. g3 {[%emt 0:00:43]} b6 {[%emt 0:01:23]} 5. Bg2 {[%emt 0:00:16]} Bb7 {[%emt 0:00:54]} 6. O-O {[%emt 0:00:15]} Be7 {[%emt 0:01:39]} 7. Re1 {[%emt 0:02:49]} d5 {[%emt 0:04:18]} 8. cxd5 {[%emt 0:00:16]} exd5 {[%emt 0:02:05]} 9. d4 {[%emt 0:01:29]} O-O {[%emt 0:01:09]} 10. b3 {[%emt 0:01:53]} Ne4 {[%emt 0:20:34]} 11. Bb2 {[%emt 0:05:32]} Bf6 {[%emt 0:05:35]} 12. Nxe4 {[%emt 0:07:46]} dxe4 {[%emt 0:00:28]} 13. Nd2 {[%emt 0:00:12]} Qe7 {[%emt 0:19:38]} 14. e3 {[%emt 0:02:18]} Na6 {[%emt 0:01:40]} 15. a3 {[%emt 0:12:48]} Rfe8 {[%emt 0:11:18]} 16. Qe2 {[%emt 0:08:02]} Rad8 {[%emt 0:05:26]} 17. Nxe4 {[%emt 0:24:15]} Bxe4 {[%emt 0:00:55]} 18. Bxe4 {[%emt 0:01:20]} Qxe4 {[%emt 0:00:39]} 19. Qxa6 {[%emt 0:00:07]} h5 {[%emt 0:14:55]} 20. Qe2 {[%emt 0:07:49]} cxd4 {[%emt 0:01:17]} 21. Qxh5 {[%emt 0:01:48]} Rd5 {[%emt 0:00:50]} 22. Qh3 {[%emt 0:02:30]} Rf5 {[%emt 0:00:37]} 23. Qg2 {[%emt 0:04:22]} dxe3 {[%emt 0:00:30]} 24. f3 {[%emt 0:05:08]} Rxf3 {[%emt 0:00:21]} 25. Bxf6 {[%emt 0:00:11]} gxf6 {[%emt 0:00:36]} 26. Re2 {[%emt 0:04:15]} Re5 {[%emt 0:00:29]} 27. Rd1 {[%emt 0:01:04]} Kg7 {[%emt 0:00:35]} 28. Rf1 {[%emt 0:02:05]} Ref5 {[%emt 0:00:27]} 29. Rxf3 {[%emt 0:00:26]} Rxf3 {[%emt 0:00:12]} 30. Re1 {[%emt 0:00:25]} f5 {[%emt 0:00:40]} 31. Qb2+ {[%emt 0:00:29]} f6 {[%emt 0:00:27]} 32. Qg2 {[%emt 0:00:13]} a5 {[%emt 0:00:43]} 33. a4 {[%emt 0:00:19]} Kg6 {[%emt 0:00:30]} 34. h3 {[%emt 0:00:56]} Kf7 {[%emt 0:00:28]} 35. Re2 {[%emt 0:00:56]} f4 {[%emt 0:00:27]} 0-1

[Event "RUS-chT Higher League 2021"]
[Site "Sochi"]
[Date "2021.05.10"]
[Round "9.12"]
[White "Pingin, Artem"]
[Black "Matveev, Vladimir"]
[Result "1/2-1/2"]
[ECO "B53"]
[WhiteElo "2347"]
[BlackElo "2368"]
[Annotator "NA"]
[PlyCount "75"]
[EventDate "2021.05.01"]
[EventType "team-tourn"]
[EventCountry "RUS"]
[SourceTitle "playchess.com"]
[Source "ChessBase"]
[SourceQuality "1"]
[TimeControl "40/5400+30:1800+30"]

1. e4 {[%emt 0:00:00]} c5 {[%emt 0:00:00]} 2. Nf3 {[%emt 0:00:00]} d6 {[%emt 0:00:00]} 3. d4 {[%emt 0:00:00]} cxd4 {[%emt 0:00:00]} 4. Qxd4 {[%emt 0:00:00]} e5 {[%emt 0:00:13]} 5. Bb5+ {[%emt 0:04:04]} Nd7 {[%emt 0:00:06]} 6. Qd3 {[%emt 0:00:49]} a6 {[%emt 0:00:04]} 7. Bc4 {[%emt 0:00:41]} Nc5 {[%emt 0:03:54]} 8. Qe2 {[%emt 0:00:18]} h6 {[%emt 0:00:10]} 9. a4 {[%emt 0:08:59]} Nf6 {[%emt 0:00:45]} 10. Nc3 {[%emt 0:00:05]} Be6 {[%emt 0:12:38]} 11. Bxe6 {[%emt 0:06:08]} fxe6 {[%emt 0:01:34]} 12. O-O {[%emt 0:19:35]} Be7 {[%emt 0:03:38]} 13. Be3 {[%emt 0:04:18]} Rc8 {[%emt 0:09:19]} 14. Rfd1 {[%emt 0:05:29]} Ncd7 {[%emt 0:02:15]} 15. Nh4 {[%emt 0:02:50]} Nf8 {[%emt 0:03:08]} 16. f4 {[%emt 0:08:02]} exf4 {[%emt 0:03:42]} 17. Bxf4 {[%emt 0:00:05]} Qb6+ {[%emt 0:04:05]} 18. Kh1 {[%emt 0:00:44]} Qxb2 {[%emt 0:13:56]} 19. e5 {[%emt 0:12:13]} dxe5 {[%emt 0:11:56]} 20. Bxe5 {[%emt 0:00:17]} Rxc3 {[%emt 0:00:05]} 21. Qe1 {[%emt 0:10:48]} Nd5 {[%emt 0:07:00]} 22. Nf5 {[%emt 0:00:18]} Bf6 {[%emt 0:18:44]} 23. Rxd5 {[%emt 0:00:39]} Bxe5 {[%emt 0:00:27]} 24. Rxe5 {[%emt 0:00:09]} Rc6 {[%emt 0:02:33]} 25. Nxg7+ {[%emt 0:00:37]} Kd7 {[%emt 0:01:13]} 26. Rb1 {[%emt 0:04:50]} Qc3 {[%emt 0:00:34]} 27. Qe4 {[%emt 0:06:14]} Kc8 {[%emt 0:00:49]} 28. Nxe6 Nd7 {[%emt 0:00:25]} 29. Rf5 {[%emt 0:02:58]} Re8 {[%emt 0:00:33]} 30. Rf3 {[%emt 0:00:41]} Qxc2 31. Qxc2 {[%emt 0:01:01]} Rxc2 {[%emt 0:00:45]} 32. Nd4 {[%emt 0:00:54]} Rc4 {[%emt 0:00:10]} 33. Nf5 {[%emt 0:00:05]} Re6 {[%emt 0:00:08]} 34. a5 {[%emt 0:01:18]} Rc5 {[%emt 0:00:16]} 35. Nd4 {[%emt 0:01:14]} Rf6 {[%emt 0:00:24]} 36. Nb3 {[%emt 0:00:55]} Rcf5 {[%emt 0:00:59]} 37. Rc3+ {[%emt 0:00:31]} Kd8 {[%emt 0:00:08]} 38. h3 {[%emt 0:00:27]} 1/2-1/2